[Event "Srdja Dragasevic Memorial-A 2024"]
[Site "Cetinje"]
[Date "2024.06.24"]
[Round "4.1"]
[White "Karthik Venkataraman"]
[Black "Saraci, Nderim"]
[Result "1/2-1/2"]
[ECO "A18"]
[WhiteElo "2590"]
[BlackElo "2449"]
[Annotator "TA"]
[PlyCount "76"]
[EventDate "2024.06.23"]
[EventType "swiss"]
[EventCountry "MNE"]
[SourceTitle "playchess.com"]
[Source "ChessBase"]
[SourceQuality "1"]
[TimeControl "40/5400+30:1800+30"]

{[%evp 12,76,49,9,15,8,17,14,8,4,6,0,5,0,0,0,11,10,2,0,0,0,9,0,0,0,0,-13,0,0,11,0,45,0,0,0,18,17,24,21,20,3,0,0,0,0,0,0,0,0,0,0,0,0,0,0,0,0,0,0,0,-4,0,0,0,-14,0]} 1. c4 {[%emt 0:00:09]} Nf6 {[%emt 0:01:27]} 2. Nc3 {[%emt 0:00:06]} e6 {[%emt 0:01:29]} 3. e4 {[%emt 0:01:32]} d5 {[%emt 0:00:42]} 4. cxd5 {[%emt 0:00:07]} exd5 {[%emt 0:00:07]} 5. e5 {[%emt 0:00:03]} d4 {[%emt 0:03:03]} 6. exf6 {[%emt 0:00:57]} dxc3 {[%emt 0:02:45]} 7. Qe2+ {[%emt 0:00:05]} Be6 {[%emt 0:04:33]} 8. dxc3 {[%emt 0:00:34] aiming for fxg7.} Qxf6 {[%emt 0:12:56]} 9. Nf3 {[%emt 0:00:08][%cal Bg1f3,Bf3g5,Bg5e6][%mdl 32]} Nd7 {[%emt 0:17:43]} 10. g3 {[%emt 0:01:48]} Bc5 {[%emt 0:06:53]} 11. Ng5 {[%emt 0:20:43]} O-O {[%emt 0:01:07]} 12. Nxe6 {[%emt 0:02:18]} Rfe8 {[%emt 0:08:19]} 13. Bh3 {[%emt 0:00:18][%cal Oc1f4]} Nf8 $1 {[%emt 0:00:06][%cal Rf8e6] [#]} 14. O-O $1 {[%emt 0:01:20][%cal Oe2b5] Strongly threatening Qb5!} Nxe6 {[%emt 0:00:05]} 15. Qc4 {[%emt 0:00:41] Inhibits Nf4. And now Bxe6 would win.} Bb6 {[%emt 0:01:47]} 16. Bg2 {[%emt 0:12:09]} Rab8 {[%emt 0:02:23]} 17. h4 {[%emt 0:03:20]} h6 {[%emt 0:00:52]} 18. a4 {[%emt 0:04:35]} a5 {[%emt 0:01:28]} 19. Qb5 {[%emt 0:00:21]} Red8 {[%emt 0:00:50]} 20. Kh2 {[%emt 0:03:16]} Rd6 {[%emt 0:06:48][%cal Ob8d8]} 21. Be3 {[%emt 0:06:40]} Qe7 {[%emt 0:05:56]} 22. Rae1 {[%emt 0:01:48]} Bxe3 {[%emt 0:00:29]} 23. Rxe3 {[%emt 0:00:01]} b6 {[%emt 0:04:06]} 24. Rfe1 {[%emt 0:06:39]} Qd7 {[%emt 0:00:49]} 25. Qxd7 {[%emt 0:02:25]} Rxd7 {[%emt 0:00:06] The position is equal.} 26. Be4 {[%emt 0:00:07]} Rd2 {[%emt 0:00:50][%csl LRb2,LRf2]} 27. R3e2 {[%emt 0:00:14]} Rbd8 {[%emt 0:01:21]} 28. h5 {[%emt 0:00:09]} Kf8 {[%emt 0:00:42]} 29. f4 {[%emt 0:01:50]} Ke7 {[%emt 0:03:31]} 30. Kh3 {[%emt 0:05:06]} Kf6 {[%emt 0:00:36]} 31. Bc2 {[%emt 0:00:08]} Rxe2 32. Rxe2 $11 {[%emt 0:00:01][%mdl 4096] Endgame. KRB-KRN} g5 {[%emt 0:03:09]} 33. fxg5+ {[%emt 0:01:13]} Nxg5+ {[%emt 0:00:02]} 34. Kg2 {[%emt 0:01:24]} Rd5 {[%emt 0:01:32]} 35. g4 {[%emt 0:01:25]} Re5 {[%emt 0:02:26]} 36. Rd2 {[%emt 0:08:18]} Ne4 {[%emt 0:01:06]} 37. Rd1 {[%emt 0:00:12]} Nd6 {[%emt 0:00:44]} 38. Kf3 {[%emt 0:08:48] Against Re2} b5 {[%emt 0:01:44] A balanced but interesting game.   Weighted Error Value: White=0.06 (flawless) /Black=0.04 (flawless) .  Inaccurate:     	White=1     	Black=1      OK:         	White=17    	Black=15     Strong:       	---       	Black=1} 1/2-1/2

[Event "Srdja Dragasevic Memorial-A 2024"]
[Site "Cetinje"]
[Date "2024.06.24"]
[Round "4.2"]
[White "Yaksin, Oleg"]
[Black "Petrov, Nikita"]
[Result "0-1"]
[ECO "A64"]
[WhiteElo "2389"]
[BlackElo "2566"]
[Annotator "TA"]
[PlyCount "84"]
[EventDate "2024.06.23"]
[EventType "swiss"]
[EventCountry "MNE"]
[SourceTitle "playchess.com"]
[Source "ChessBase"]
[SourceQuality "1"]
[TimeControl "40/5400+30:1800+30"]

{[%evp 29,84,0,0,-22,0,8,0,0,4,8,6,8,8,0,0,-75,-65,-163,-175,-171,-169,-177,-184,-199,-191,-278,-283,-263,-272,-281,-274,-291,-284,-271,-273,-349,-256,-334,-295,-295,-295,-292,-300,-300,-300,-608,-649,-649,-649,-941,-941,-1693,-1407,-29977,-29977,-29978,-29978]} 1. d4 {[%emt 0:01:50]} Nf6 {[%emt 0:01:09]} 2. c4 {[%emt 0:00:07]} e6 {[%emt 0:00:07]} 3. g3 {[%emt 0:00:03]} c5 {[%emt 0:00:49]} 4. d5 {[%emt 0:00:07]} exd5 {[%emt 0:00:12]} 5. cxd5 {[%emt 0:00:05]} d6 {[%emt 0:00:18]} 6. Nc3 {[%emt 0:00:08]} g6 {[%emt 0:00:09]} 7. Bg2 {[%emt 0:00:05]} Bg7 {[%emt 0:00:12]} 8. Nf3 {[%emt 0:00:02][%cal Bg1f3,Bf3d2,Bd2c4,Bc4a3][%mdl 32]} O-O {[%emt 0:00:22]} 9. O-O {[%emt 0:00:04]} Re8 {[%emt 0:00:33]} 10. Nd2 {[%emt 0:00:23]} a6 {[%emt 0:02:34]} 11. a4 {[%emt 0:00:05]} Nbd7 {[%emt 0:00:21]} 12. h3 {[%emt 0:06:30]} Rb8 {[%emt 0:02:48]} 13. Nc4 {[%emt 0:01:14]} Ne5 {[%emt 0:16:39]} 14. Na3 {[%emt 0:01:33]} Nh5 {[%emt 0:08:21]} 15. e4 {[%emt 0:00:26]} Bd7 {[%emt 0:01:44]} 16. a5 {[%emt 0:36:34]} b5 {[%emt 0:02:22][%cal Ob5b4]} (16... Qxa5 $5 17. g4 Nf6 $14) 17. axb6 {[%emt 0:00:55]} Bb5 {[%emt 0:00:05]} 18. Naxb5 {[%emt 0:01:07] The position is equal.} axb5 {[%emt 0:00:05]} 19. Nxb5 {[%emt 0:12:29]} Qxb6 {[%emt 0:01:21]} 20. Na3 {[%emt 0:00:03]} Qb3 {[%emt 0:04:37]} 21. g4 {[%emt 0:02:41]} Nf6 {[%emt 0:02:45]} 22. Qe2 {[%emt 0:17:24]} (22. Rb1 $11 {remains equal.}) 22... Nd3 $17 {[%emt 0:08:06] Black is much more active. Black continues to play with concentration.} 23. Rd1 {[%emt 0:03:47] [#]} (23. Qd1 $1 $15) 23... Nxc1 $1 $19 {[%emt 0:04:37]} (23... Nxb2 24. Bxb2 Qxb2 25. Qxb2 Rxb2 26. Nc4 $14) 24. Raxc1 {[%emt 0:00:06] [#]} Nxd5 $1 {[%emt 0:00:35][%mdl 512] Strongly threatening ...Nf4.} 25. Nc4 {[%emt 0:03:12]} (25. Rxd5 $2 Qxd5 (25... Qxb2 26. Qxb2 Bxb2 27. Rc2 $15) 26. Nb5 Qg5 $19) (25. Qc2 Bxb2) 25... Nf4 $36 {[%emt 0:01:24][%mdl 2048] Black is really pushing.} (25... Bxb2 $2 26. Qxb2 Qxb2 27. Nxb2 $18) 26. Qf1 {[%emt 0:01:03]} Bd4 {[%emt 0:07:20]} (26... Bxb2 27. Rb1 Qc3 28. Nxd6 $17) 27. Nxd6 {[%emt 0:00:52] [#]} (27. Kh1 {was called for.}) 27... Nxh3+ $1 {[%emt 0:07:38][%mdl 512]} 28. Bxh3 {[%emt 0:01:53]} Qg3+ {[%emt 0:00:49]} 29. Bg2 {[%emt 0:00:02]} Qxd6 {[%emt 0:00:06]} 30. Rc2 {[%emt 0:01:05] White is weak on the dark squares} Qf4 {[%emt 0:00:42]} (30... Rxb2 $2 31. Rxb2 Qf4 32. Rb7 $18) 31. Qe2 {[%emt 0:01:02]} Rb3 {[%emt 0:00:24] Inhibits Qf3.} 32. Rdd2 {[%emt 0:01:08]} Reb8 {[%emt 0:04:01]} (32... Rg3 33. Rxd4 Rxg2+ (33... Rxg4 $2 34. Rxc5 Ra8 35. Qd1 $18) 34. Kxg2 $11) 33. e5 {[%emt 0:02:02] [#]} Re3 $3 {[%emt 0:10:06][%mdl 512]} 34. Rxd4 {[%emt 0:06:11]} (34. fxe3 $2 Bxe3+ $19) 34... Rxe2 {[%emt 0:00:06]} 35. Rxf4 {[%emt 0:00:04]} Rxc2 {[%emt 0:00:03][%mdl 4096] Endgame. KRR-KRB} 36. Bd5 {[%emt 0:00:47]} Rf8 {[%emt 0:00:16]} (36... Rbxb2 37. Rxf7 Rd2 38. Bc4 $17) 37. Rc4 $2 {[%emt 0:01:02]} (37. b4) 37... Rxc4 {[%emt 0:00:51]} 38. Bxc4 {[%emt 0:00:02]} Re8 {[%emt 0:01:14]} 39. f4 {[%emt 0:00:09] [#]} g5 $1 {[%emt 0:00:05]} 40. e6 {[%emt 0:00:00]} (40. Bb5 Rb8) 40... Rxe6 {[%emt 0:00:00]} (40... gxf4 41. exf7+ Kf8 42. fxe8=B $18 (42. fxe8=N Kxe8 43. g5 Ke7 44. Bd3 Kf7 45. Bxh7 f3 46. Kf2 Ke6) (42. fxe8=Q+ Kxe8 43. g5 Kf8 44. Kg2 f3+ 45. Kxf3 Kg7 46. Ke4 Kg6)) 41. Bxe6 {[%emt 0:00:48]} fxe6 {[%emt 0:03:30]} 42. fxg5 {[%emt 0:00:15]} Kg7 {[%emt 0:00:06] Weighted Error Value: White=0.88/Black=0.08 (flawless) .  Mistake:       	White=4     	---        Inaccurate:     	White=1     	Black=1      OK:         	White=5     	Black=10     Best:        	White=3     	Black=5      Strong:       	---       	Black=1      Brilliant:      	---       	Black=1} 0-1

[Event "Srdja Dragasevic Memorial-A 2024"]
[Site "Cetinje"]
[Date "2024.06.24"]
[Round "4.3"]
[White "Milanovic, Danilo"]
[Black "Kalezic, Blazo"]
[Result "1/2-1/2"]
[ECO "D10"]
[WhiteElo "2438"]
[BlackElo "2398"]
[Annotator "TA"]
[PlyCount "31"]
[EventDate "2024.06.23"]
[EventType "swiss"]
[EventCountry "MNE"]
[SourceTitle "playchess.com"]
[Source "ChessBase"]
[SourceQuality "1"]
[TimeControl "40/5400+30:1800+30"]

{[%evp 9,31,20,28,0,25,19,27,16,12,0,24,20,14,14,30,28,29,20,27,7,14,9,16,10]} 1. d4 {[%emt 0:13:36]} d5 {[%emt 0:00:13]} 2. c4 {[%emt 0:00:19]} c6 {[%emt 0:00:07]} 3. cxd5 {[%emt 0:00:06]} cxd5 {[%emt 0:00:05]} 4. Bf4 {[%emt 0:00:08]} Nc6 {[%emt 0:00:40]} 5. e3 {[%emt 0:00:08]} Nf6 {[%emt 0:00:23]} 6. Bb5 {[%emt 0:00:14]} Bd7 {[%emt 0:01:32]} 7. Nc3 {[%emt 0:00:29]} e6 {[%emt 0:00:24]} 8. Bd3 {[%emt 0:17:40] White has an edge.} Rc8 {[%emt 0:07:29]} 9. h3 {[%emt 0:06:58]} Be7 {[%emt 0:05:16]} 10. Nf3 {[%emt 0:10:11]} O-O {[%emt 0:01:25]} 11. O-O {[%emt 0:00:29]} Na5 {[%emt 0:00:48]} 12. Ne5 {[%emt 0:00:37]} Bc6 {[%emt 0:00:55]} 13. Qe2 {[%emt 0:10:50]} Nd7 {[%emt 0:02:42]} 14. Nxc6 {[%emt 0:10:38]} Nxc6 {[%emt 0:01:53]} 15. Rac1 {[%emt 0:00:14]} Nb6 {[%emt 0:00:37]} 16. Rfd1 {[%emt 0:05:28] An uneventful encounter.   Weighted Error Value: White=0.10 (very precise) /Black=0.08 (flawless) .  OK:         	White=1     	Black=4} 1/2-1/2

[Event "Srdja Dragasevic Memorial-A 2024"]
[Site "Cetinje"]
[Date "2024.06.24"]
[Round "4.4"]
[White "Hart, Alexander"]
[Black "Tadic, Stefan"]
[Result "0-1"]
[ECO "D10"]
[WhiteElo "1949"]
[BlackElo "2421"]
[Annotator "RC"]
[PlyCount "108"]
[EventDate "2024.06.23"]
[EventType "swiss"]
[EventCountry "MNE"]
[SourceTitle "playchess.com"]
[Source "ChessBase"]
[SourceQuality "1"]
[TimeControl "40/5400+30:1800+30"]

1. c4 {[%emt 0:00:01]} c6 {[%emt 0:00:37]} 2. Nf3 {[%emt 0:00:31]} d5 {[%emt 0:00:05]} 3. e3 {[%emt 0:00:06]} Nf6 {[%emt 0:00:04]} 4. Nc3 {[%emt 0:00:51]} Bf5 {[%emt 0:00:07]} 5. Qb3 {[%emt 0:09:59]} Qb6 {[%emt 0:01:58]} 6. Qxb6 {[%emt 0:01:15]} axb6 {[%emt 0:00:05]} 7. cxd5 {[%emt 0:00:08]} Nxd5 {[%emt 0:01:36]} 8. Nxd5 {[%emt 0:02:12]} cxd5 {[%emt 0:00:04]} 9. d4 {[%emt 0:03:43]} f6 {[%emt 0:04:03]} 10. Bd2 {[%emt 0:01:49]} Nc6 {[%emt 0:00:07]} 11. Bb5 {[%emt 0:00:59]} e6 {[%emt 0:05:03]} 12. O-O {[%emt 0:01:02]} Bd6 {[%emt 0:00:04]} 13. Rfc1 {[%emt 0:08:58]} Kd7 {[%emt 0:01:49]} 14. Nh4 {[%emt 0:11:40]} Bg4 {[%emt 0:06:32]} 15. f3 {[%emt 0:09:48]} Bh5 {[%emt 0:00:21]} 16. g4 {[%emt 0:04:21]} Bf7 {[%emt 0:01:16]} 17. Be1 {[%emt 0:03:48]} h5 {[%emt 0:05:04]} 18. h3 {[%emt 0:09:43]} g5 {[%emt 0:05:26]} 19. Ng2 {[%emt 0:00:25]} hxg4 {[%emt 0:00:04]} 20. hxg4 {[%emt 0:00:20]} Rh3 {[%emt 0:00:05]} 21. Kf2 {[%emt 0:05:57]} f5 {[%emt 0:05:12]} 22. Bc3 {[%emt 0:05:35]} fxg4 {[%emt 0:08:51]} 23. fxg4 {[%emt 0:01:26]} Rf8 {[%emt 0:00:04]} 24. Ke2 {[%emt 0:06:10]} Rh2 {[%emt 0:02:30]} 25. Rg1 {[%emt 0:00:45]} Bg6 {[%emt 0:00:02]} 26. Raf1 {[%emt 0:03:22]} Ra8 {[%emt 0:07:39]} 27. Bd3 {[%emt 0:02:57]} Bxd3+ {[%emt 0:00:11]} 28. Kxd3 {[%emt 0:00:01]} Rxa2 {[%emt 0:00:09]} 29. Rf7+ {[%emt 0:01:22]} Be7 {[%emt 0:00:01]} 30. Kc2 {[%emt 0:02:07]} Ra8 {[%emt 0:02:33]} 31. Kb1 {[%emt 0:00:38]} b5 {[%emt 0:03:26]} 32. Be1 {[%emt 0:00:51]} Rah8 {[%emt 0:00:04]} 33. Bg3 {[%emt 0:00:42]} R2h3 {[%emt 0:00:02]} 34. Be1 {[%emt 0:02:37]} Rh1 {[%emt 0:00:04]} 35. Rff1 {[%emt 0:00:59]} Rxg1 {[%emt 0:00:11]} 36. Rxg1 {[%emt 0:00:01]} Bd6 {[%emt 0:00:13]} 37. Kc1 {[%emt 0:00:43]} e5 {[%emt 0:00:47]} 38. dxe5 {[%emt 0:00:22]} Nxe5 {[%emt 0:00:11]} 39. Bc3 {[%emt 0:00:18]} Rh3 {[%emt 0:03:21]} 40. Bxe5 {[%emt 0:00:00]} Bxe5 {[%emt 0:00:00]} 41. Rd1 {[%emt 0:06:01]} Ke6 {[%emt 0:00:53]} 42. Ne1 {[%emt 0:00:20]} Rxe3 {[%emt 0:00:22]} 43. Nd3 {[%emt 0:00:59]} Bd6 {[%emt 0:09:55]} 44. Kd2 {[%emt 0:04:16]} Re4 {[%emt 0:00:15]} 45. Rh1 {[%emt 0:07:43]} Rxg4 {[%emt 0:01:30]} 46. Rh6+ {[%emt 0:00:03]} Kd7 {[%emt 0:01:08]} 47. Ke3 {[%emt 0:00:54]} Re4+ {[%emt 0:00:16]} 48. Kf2 {[%emt 0:00:43]} g4 {[%emt 0:00:09]} 49. Rg6 {[%emt 0:00:27]} g3+ {[%emt 0:01:10]} 50. Kf3 {[%emt 0:00:45]} Re6 {[%emt 0:00:09]} 51. Rg5 {[%emt 0:01:36]} Kc6 {[%emt 0:00:42]} 52. b4 {[%emt 0:00:44]} d4 {[%emt 0:01:46]} 53. Nc5 {[%emt 0:01:25]} Re3+ {[%emt 0:00:22]} 54. Kg2 {[%emt 0:00:12]} b6 {[%emt 0:00:07]} 0-1

[Event "Srdja Dragasevic Memorial-A 2024"]
[Site "Cetinje"]
[Date "2024.06.24"]
[Round "4.5"]
[White "Damljanovic, Branko"]
[Black "Mammadova, Narmin"]
[Result "0-1"]
[ECO "D45"]
[WhiteElo "2364"]
[BlackElo "2277"]
[Annotator "RC"]
[PlyCount "94"]
[EventDate "2024.06.23"]
[EventType "swiss"]
[EventCountry "MNE"]
[SourceTitle "playchess.com"]
[Source "ChessBase"]
[SourceQuality "1"]
[TimeControl "40/5400+30:1800+30"]

1. d4 {[%emt 0:07:31]} d5 {[%emt 0:00:18]} 2. Nf3 {[%emt 0:00:09]} Nf6 {[%emt 0:00:06]} 3. c4 {[%emt 0:00:05]} c6 {[%emt 0:00:13]} 4. Nc3 {[%emt 0:00:20]} e6 {[%emt 0:00:30]} 5. e3 {[%emt 0:03:02]} Nbd7 {[%emt 0:00:40]} 6. b3 {[%emt 0:00:10]} Bd6 {[%emt 0:00:41]} 7. Bb2 {[%emt 0:00:08]} O-O {[%emt 0:00:24]} 8. Be2 {[%emt 0:00:06]} b6 {[%emt 0:01:16]} 9. O-O {[%emt 0:01:54]} Bb7 {[%emt 0:00:09]} 10. Rc1 {[%emt 0:00:02]} Re8 {[%emt 0:00:49]} 11. Rc2 {[%emt 0:02:23]} Qe7 {[%emt 0:03:43]} 12. cxd5 {[%emt 0:05:22]} exd5 {[%emt 0:02:16]} 13. Bd3 {[%emt 0:00:03]} Ne4 {[%emt 0:07:27]} 14. Ne2 {[%emt 0:02:05]} a5 {[%emt 0:06:12]} 15. a4 {[%emt 0:08:23]} Qe6 {[%emt 0:15:07]} 16. Ng3 {[%emt 0:02:47]} f5 {[%emt 0:05:58]} 17. Re1 {[%emt 0:02:28]} Rf8 {[%emt 0:03:48]} 18. Nf1 {[%emt 0:10:05]} Rae8 {[%emt 0:03:59]} 19. Ree2 {[%emt 0:18:07]} Qh6 {[%emt 0:08:30]} 20. Ne1 {[%emt 0:06:10]} g5 {[%emt 0:05:00]} 21. Qc1 {[%emt 0:11:01]} Rf6 {[%emt 0:02:00]} 22. g3 {[%emt 0:09:17]} Bb8 {[%emt 0:08:04]} 23. f4 {[%emt 0:01:34]} g4 {[%emt 0:10:27]} 24. Ba3 {[%emt 0:00:28]} Bd6 {[%emt 0:06:39]} 25. Bxd6 {[%emt 0:00:37]} Rxd6 {[%emt 0:01:08]} 26. Rg2 {[%emt 0:01:31]} c5 {[%emt 0:03:05]} 27. Bb5 {[%emt 0:00:03]} Bc6 {[%emt 0:05:31]} 28. Nd2 {[%emt 0:08:39]} Bxb5 {[%emt 0:00:00]} 29. axb5 {[%emt 0:00:00]} Qf6 {[%emt 0:00:00]} 30. Qb2 {[%emt 0:00:25]} Nxd2 {[%emt 0:00:17]} 31. Rgxd2 {[%emt 0:00:02]} Rxe3 {[%emt 0:00:36]} 32. Nd3 {[%emt 0:00:23]} cxd4 {[%emt 0:00:43]} 33. Rc8+ {[%emt 0:00:03]} Kg7 {[%emt 0:00:17]} 34. Rc7 {[%emt 0:00:01]} Kh6 {[%emt 0:00:43]} 35. b4 {[%emt 0:00:31]} axb4 {[%emt 0:00:31]} 36. Qxb4 {[%emt 0:00:02]} Re4 {[%emt 0:00:48]} 37. Rdc2 {[%emt 0:00:19]} Kh5 {[%emt 0:00:31]} 38. R2c6 {[%emt 0:00:18]} Rxc6 {[%emt 0:00:28]} 39. bxc6 {[%emt 0:01:14]} Nc5 {[%emt 0:00:08]} 40. Ne5 {[%emt 0:00:00]} Rxe5 {[%emt 0:00:00]} 41. fxe5 {[%emt 0:00:52]} Qxe5 {[%emt 0:01:08]} 42. Rxh7+ {[%emt 0:01:30]} Kg6 {[%emt 0:00:13]} 43. c7 {[%emt 0:00:42]} Qe3+ {[%emt 0:04:32]} 44. Kg2 {[%emt 0:02:22]} Qe2+ {[%emt 0:03:38]} 45. Kg1 {[%emt 0:00:05]} Nd3 {[%emt 0:13:40]} 46. Qb1 {[%emt 0:06:46]} Qf2+ {[%emt 0:00:57]} 47. Kh1 {[%emt 0:00:09]} Ne1 {[%emt 0:00:27]} 0-1

[Event "Srdja Dragasevic Memorial-A 2024"]
[Site "Cetinje"]
[Date "2024.06.24"]
[Round "4.6"]
[White "Djukic, Nikola"]
[Black "Vujosevic, Vladimir"]
[Result "1-0"]
[ECO "C78"]
[WhiteElo "2532"]
[BlackElo "2306"]
[Annotator "TA"]
[PlyCount "51"]
[EventDate "2024.06.23"]
[EventType "swiss"]
[EventCountry "MNE"]
[SourceTitle "playchess.com"]
[Source "ChessBase"]
[SourceQuality "1"]
[TimeControl "40/5400+30:1800+30"]

{[%evp 19,51,15,54,47,52,45,57,50,42,41,45,42,53,65,98,112,112,129,131,133,183,174,264,253,275,273,268,242,418,427,413,400,730,514]} 1. e4 {[%emt 0:00:03]} e5 {[%emt 0:00:43]} 2. Nf3 {[%emt 0:00:06]} Nc6 {[%emt 0:00:31]} 3. Bb5 {[%emt 0:00:06]} a6 {[%emt 0:00:23]} 4. Ba4 {[%emt 0:00:07]} Nf6 {[%emt 0:00:26]} 5. O-O {[%emt 0:00:09]} b5 {[%emt 0:01:02]} 6. Bb3 {[%emt 0:00:09]} Bb7 {[%emt 0:00:10]} 7. Re1 {[%emt 0:01:47]} Bc5 {[%emt 0:00:50]} 8. c3 {[%emt 0:00:16]} d6 {[%emt 0:00:33]} 9. d4 {[%emt 0:00:32]} Bb6 {[%emt 0:00:16]} 10. a4 {[%emt 0:00:43]} h6 {[%emt 0:02:08]} 11. Be3 {[%emt 0:01:16]} Ng4 {[%emt 0:04:22]} 12. Bd5 {[%emt 0:00:50][%cal Of3e5]} Nxe3 {[%emt 0:04:46]} 13. fxe3 {[%emt 0:00:09] White is slightly better.} O-O {[%emt 0:05:27]} 14. Qe2 {[%emt 0:03:20]} bxa4 {[%emt 0:10:33]} 15. Nbd2 {[%emt 0:02:52]} Qc8 {[%emt 0:05:31]} 16. Qc4 {[%emt 0:13:17]} Na5 {[%emt 0:15:50]} 17. Qxa4 {[%emt 0:03:15] Strongly threatening b4. White is much more active.} Bxd5 {[%emt 0:10:24]} 18. exd5 {[%emt 0:00:43]} Nb7 {[%emt 0:11:48]} 19. Nc4 {[%emt 0:18:34]} e4 {[%emt 0:09:44]} (19... a5 $16 {might work better.} 20. Nxb6 (20. dxe5 Nc5 $16) 20... cxb6) 20. Nfd2 $18 {[%emt 0:00:13][%cal Bf3d2,Bd2e4,Be4d6,Bd6f5][%mdl 32]} Nd8 {[%emt 0:00:16]} (20... f5 $142 21. Qc6 a5 22. Nxb6 cxb6) 21. Nxe4 {[%emt 0:09:02]} Qf5 {[%emt 0:07:38] [#]} 22. Nexd6 {[%emt 0:03:47][%mdl 512]} Qxd5 {[%emt 0:00:22]} 23. Rf1 {[%emt 0:04:49]} Rb8 $2 {[%emt 0:05:56]} (23... Qe6 {was called for.} 24. Nf5 Kh7) 24. Nf5 {[%emt 0:02:30] Threatens to win with Ne7+. Excellent horsemanship.} Kh7 {[%emt 0:01:27]} 25. Ne5 {[%emt 0:02:58]} ({Don't take} 25. Qxa6 Qe6 26. b4 g6 $18) 25... Ra8 {[%emt 0:01:00]} (25... Qe6 $142 26. Nd7 (26. Qxa6 Nc6 $18) 26... Nc6 27. Nxf8+ (27. Nxb8 Nxb8 28. c4 c5 $18) 27... Rxf8) 26. c4 {[%emt 0:08:17] Weighted Error Value: White=0.00 (flawless) /Black=0.32.  Mistake:       	---       	Black=4      Inaccurate:     	---       	Black=1      OK:         	White=9     	Black=3      Best:        	White=2     	---        Brilliant:      	White=1     	---} 1-0

[Event "Srdja Dragasevic Memorial-A 2024"]
[Site "Cetinje"]
[Date "2024.06.24"]
[Round "4.8"]
[White "Xie, Bryan"]
[Black "Tomic, Aleksandar"]
[Result "1-0"]
[ECO "B06"]
[WhiteElo "2281"]
[BlackElo "2388"]
[Annotator "RC"]
[PlyCount "43"]
[EventDate "2024.06.23"]
[EventType "swiss"]
[EventCountry "MNE"]
[SourceTitle "playchess.com"]
[Source "ChessBase"]
[SourceQuality "1"]
[TimeControl "40/5400+30:1800+30"]

1. e4 {[%emt 1:31:00]} g6 {[%emt 0:19:48]} 2. d4 {[%emt 0:00:00]} Bg7 {[%emt 0:00:07]} 3. Nc3 {[%emt 0:00:00]} d5 {[%emt 0:01:46]} 4. exd5 {[%emt 0:00:00]} Nf6 {[%emt 0:00:22]} 5. Bc4 {[%emt 0:00:00]} Nbd7 {[%emt 0:00:29]} 6. Bg5 {[%emt 0:00:00]} O-O {[%emt 0:06:47]} 7. Bb3 {[%emt 0:00:00]} Nb6 {[%emt 0:05:05]} 8. Bxf6 {[%emt 0:00:00]} exf6 {[%emt 0:01:20]} 9. Nge2 {[%emt 0:00:00]} a5 {[%emt 0:01:31]} 10. a4 {[%emt 0:00:00]} Bg4 {[%emt 0:04:24]} 11. f3 {[%emt 0:00:00]} Bc8 {[%emt 0:00:45]} 12. Qd2 {[%emt 0:00:00]} Re8 {[%emt 0:04:29]} 13. O-O {[%emt 0:00:00]} c6 {[%emt 0:01:39]} 14. dxc6 {[%emt 0:00:00]} bxc6 {[%emt 0:00:01]} 15. Rfe1 {[%emt 0:00:00]} f5 {[%emt 0:01:44]} 16. Rad1 {[%emt 0:00:00]} Qd6 {[%emt 0:02:37]} 17. d5 {[%emt 0:00:00]} cxd5 {[%emt 0:13:00]} 18. Nxd5 {[%emt 0:00:00]} Bxb2 {[%emt 0:15:23]} 19. c3 {[%emt 0:00:00]} Bb7 {[%emt 0:08:29]} 20. Nxb6 {[%emt 0:00:00]} Qxb6+ {[%emt 0:01:01]} 21. Nd4 {[%emt 0:00:00]} Red8 {[%emt 0:09:42]} 22. Qxb2 {[%emt 0:10:30]} 1-0

[Event "Srdja Dragasevic Memorial-A 2024"]
[Site "Cetinje"]
[Date "2024.06.24"]
[Round "4.9"]
[White "Kosic, Dragan"]
[Black "Vujovic, Savo"]
[Result "1-0"]
[ECO "D05"]
[WhiteElo "2382"]
[BlackElo "2230"]
[Annotator "RC"]
[PlyCount "67"]
[EventDate "2024.06.23"]
[EventType "swiss"]
[EventCountry "MNE"]
[SourceTitle "playchess.com"]
[Source "ChessBase"]
[SourceQuality "1"]
[TimeControl "40/5400+30:1800+30"]

1. d4 {[%emt 0:00:08]} d5 {[%emt 0:00:11]} 2. Nf3 {[%emt 0:00:20]} e6 {[%emt 0:00:51]} 3. e3 {[%emt 0:00:36]} c5 {[%emt 0:00:26]} 4. b3 {[%emt 0:00:07]} Nf6 {[%emt 0:05:22]} 5. Bd3 {[%emt 0:00:10]} Nc6 {[%emt 0:04:13]} 6. Bb2 {[%emt 0:00:17]} cxd4 {[%emt 0:02:01]} 7. exd4 {[%emt 0:00:09]} Bd6 {[%emt 0:01:50]} 8. O-O {[%emt 0:00:13]} O-O {[%emt 0:00:51]} 9. Nbd2 {[%emt 0:00:12]} b6 {[%emt 0:00:57]} 10. Re1 {[%emt 0:00:25]} Bb7 {[%emt 0:01:51]} 11. a3 {[%emt 0:00:07]} Rc8 {[%emt 0:01:06]} 12. Ne5 {[%emt 0:01:04]} Ne7 {[%emt 0:06:35]} 13. Qf3 {[%emt 0:03:54]} Nf5 {[%emt 0:22:58]} 14. Bxf5 {[%emt 0:06:34]} exf5 {[%emt 0:00:07]} 15. Qxf5 {[%emt 0:00:08]} Ne4 {[%emt 0:01:07]} 16. Nxe4 {[%emt 0:01:08]} dxe4 {[%emt 0:00:11]} 17. c4 {[%emt 0:03:12]} Rc7 {[%emt 0:23:20]} 18. d5 {[%emt 0:04:05]} f6 {[%emt 0:09:54]} 19. Nc6 {[%emt 0:01:21]} Bxc6 {[%emt 0:02:05]} 20. dxc6 {[%emt 0:00:03]} Kh8 {[%emt 0:11:26]} 21. Qxe4 {[%emt 0:03:21]} Qc8 {[%emt 0:00:19]} 22. Rad1 {[%emt 0:02:16]} Rxc6 {[%emt 0:00:25]} 23. g3 {[%emt 0:00:16]} a5 {[%emt 0:00:44]} 24. a4 {[%emt 0:01:30]} Bc5 {[%emt 0:00:55]} 25. Rd5 {[%emt 0:00:47]} f5 {[%emt 0:01:04]} 26. Qe5 {[%emt 0:01:37]} Rg6 {[%emt 0:00:08]} 27. Bd4 {[%emt 0:01:36]} Bb4 {[%emt 0:00:29]} 28. Re2 {[%emt 0:10:24]} f4 {[%emt 0:00:38]} 29. Qh5 {[%emt 0:00:42]} Rf7 {[%emt 0:01:32]} 30. Bxb6 {[%emt 0:02:40]} Bf8 {[%emt 0:00:23]} 31. Rd8 {[%emt 0:01:14]} fxg3 {[%emt 0:01:13]} 32. hxg3 {[%emt 0:00:26]} Qc6 {[%emt 0:00:15]} 33. Ree8 {[%emt 0:03:11]} Kg8 {[%emt 0:00:11]} 34. Bc5 {[%emt 0:53:17]} 1-0